[Event "Rosh Hashanah Rapid 2022"]
[Site "Ramat Gan"]
[Date "2022.09.25"]
[Round "3.1"]
[White "Veinberg, Nimrod"]
[Black "Gorodetzky, David"]
[Result "1-0"]
[ECO "D24"]
[WhiteElo "2400"]
[BlackElo "2495"]
[Annotator "TA"]
[PlyCount "81"]
[EventDate "2022.09.25"]
[EventType "rapid"]
[EventCountry "ISR"]
[SourceTitle "playchess.com"]
[Source "ChessBase"]
[SourceQuality "1"]
[TimeControl "900+5"]

{[%evp 11,81,-2,21,26,20,0,6,0,26,0,16,0,0,0,0,0,12,0,0,-12,0,0,0,0,47,47,47,47,47,47,47,20,25,38,118,118,133,133,144,118,118,106,204,193,570,571,535,578,608,605,575,455,430,354,327,340,343,339,366,363,358,357,405,375,497,484,839,812,29998,29994,29994,29995]} 1. d4 {[%emt 0:00:02]} d5 {[%emt 0:00:19]} 2. c4 {[%emt 0:00:02]} e6 {[%emt 0:01:04]} 3. Nf3 {[%emt 0:00:11]} Nf6 {[%emt 0:00:09]} 4. Nc3 {[%emt 0:00:02]} dxc4 {[%emt 0:00:19]} 5. e3 {[%emt 0:00:13]} a6 {[%emt 0:00:08]} 6. a4 {[%emt 0:00:06]} Bb4 {[%emt 0:00:41]} 7. Bxc4 {[%emt 0:00:01] D24: Queen's Gambit Accepted: 3 Nf3 Nf6 4 Nc3.} b6 {[%emt 0:00:03]} 8. O-O {[%emt 0:00:24]} Bb7 {[%emt 0:00:06] Prevents e4.} 9. Qe2 {[%emt 0:00:03] The position is equal.} Nbd7 {[%emt 0:00:23]} 10. Rd1 {[%emt 0:00:02]} O-O {[%emt 0:02:04]} 11. d5 {[%emt 0:00:49]} exd5 {[%emt 0:02:02]} 12. Nxd5 {[%emt 0:00:02]} Bd6 {[%emt 0:01:43]} 13. b3 {[%emt 0:00:41]} Nc5 {[%emt 0:04:14]} 14. Nxf6+ {[%emt 0:03:46]} Qxf6 {[%emt 0:00:01] [#]} 15. Bb2 $146 {[%emt 0:00:01]} ({Predecessor:} 15. Ba3 Rfd8 16. h3 Ne4 17. Bb2 Qe7 18. Rac1 c5 19. Nd2 Nf6 20. Nf3 Ne4 21. Nd2 {½-½ (43) Magai,V (2531)-Kortschnoj,V (2634) Bled 2002}) 15... Qh6 {[%emt 0:01:16]} 16. Bd5 {[%emt 0:01:04]} Bxd5 {[%emt 0:01:09]} 17. Rxd5 {[%emt 0:00:02]} Nxb3 {[%emt 0:00:04] [#]} (17... Rfd8 $11 {deserves consideration.} 18. Qc4 Be7) 18. Bxg7 $1 $14 {[%emt 0:00:35]} Qxg7 {[%emt 0:00:36]} 19. Rg5 {[%emt 0:00:53]} Nxa1 {[%emt 0:00:07]} 20. Rxg7+ Kxg7 {[%emt 0:00:01]} 21. Qb2+ {[%emt 0:00:41]} f6 {[%emt 0:00:01]} 22. Qxa1 {[%emt 0:00:01]} Rf7 {[%emt 0:00:17] Black is on the road to losing.} ({Black should try} 22... Kh8 $14) 23. g3 $16 {[%emt 0:00:13][%mdl 1024] White has strong compensation.} Rd8 {[%emt 0:00:03]} 24. Nd4 $36 {[%emt 0:00:01][%mdl 2048] Black is under strong pressure.} Kh8 {[%emt 0:00:07]} 25. Nc6 {[%emt 0:00:20]} Rdf8 {[%emt 0:00:06]} 26. a5 {[%emt 0:00:08]} b5 {[%emt 0:00:03]} (26... Bc5 $16) 27. Qd4 $18 {[%emt 0:00:07] [#] Qa7 is the strong threat.} Kg7 $2 {[%emt 0:00:07]} (27... Ra8 {is a better chance.} 28. Kf1 Rff8) 28. Qa7 {[%emt 0:00:04]} b4 {[%emt 0:00:05]} 29. Qxa6 {[%emt 0:00:03]} Re8 {[%emt 0:00:05]} 30. Qb5 {[%emt 0:00:08]} Ra8 {[%emt 0:00:04]} 31. Qb7 {[%emt 0:00:17]} Rff8 {[%emt 0:00:05]} 32. a6 {[%emt 0:00:05]} b3 {[%emt 0:00:05]} 33. a7 {[%emt 0:00:08]} ({Weaker is} 33. Qxb3 Rxa6 34. Nd4 Kh8 $18) 33... Bc5 {[%emt 0:00:01]} 34. Qxc7+ {[%emt 0:00:54]} Rf7 {[%emt 0:00:01]} 35. Qb8 {[%emt 0:00:30] Chess con chili.} Rfxa7 {[%emt 0:00:13]} 36. Qxb3 {[%emt 0:00:01]} Rc7 {[%emt 0:00:04]} 37. Qd5 {[%emt 0:00:04]} Rac8 {[%emt 0:00:07]} 38. Nd8 {[%emt 0:00:06] Threatens to win with Ne6+.} ({Less strong is} 38. Qxc5 Rxc6 39. Qe7+ Kh8 $18) 38... Kg6 {[%emt 0:00:06]} (38... Kh8 $142 39. Ne6 Ra7 40. Nxc5 Ra5) 39. g4 {[%emt 0:00:18] And now Ne6 would win.} Be7 {[%emt 0:00:05]} 40. Qf7+ {[%emt 0:00:12]} Kh6 {[%emt 0:00:03]} 41. Ne6 {[%emt 0:00:04] Weighted Error Value: White=0.11 (very precise) /Black=0.51} 1-0

[Event "Rosh Hashanah Rapid 2022"]
[Site "Ramat Gan"]
[Date "2022.09.25"]
[Round "3.2"]
[White "Dvoirys, Semen I."]
[Black "Ben Ari, Yannay"]
[Result "0-1"]
[ECO "B11"]
[WhiteElo "2461"]
[BlackElo "2387"]
[Annotator "TA"]
[PlyCount "67"]
[EventDate "2022.09.25"]
[EventType "rapid"]
[EventCountry "ISR"]
[SourceTitle "playchess.com"]
[Source "ChessBase"]
[SourceQuality "1"]
[TimeControl "900+5"]

{[%evp 10,67,27,7,22,0,0,0,0,-2,0,6,12,-58,-47,-42,-37,-55,-59,-67,-58,-78,-57,-45,-44,-63,45,-228,-226,-214,-207,-196,-202,-281,-279,-285,-286,-256,-180,-160,-130,-224,-217,-695,-671,-1307,-720,-716,-530,-655,-636,-770,-590,-737,-717,-757,-762,-725,-459,-423]} 1. e4 {[%emt 0:00:03]} c6 {[%emt 0:00:09]} 2. Nc3 {[%emt 0:00:06]} d5 {[%emt 0:00:02]} 3. Nf3 {[%emt 0:00:01]} Bg4 {[%emt 0:00:01]} 4. h3 {[%emt 0:00:02]} Bxf3 {[%emt 0:00:02]} 5. Qxf3 {[%emt 0:00:02]} e6 {[%emt 0:00:01]} 6. g3 {[%emt 0:00:07]} Nd7 {[%emt 0:00:03][%cal Bb8d7,Bd7e5,Be5g4][%mdl 32] B11: Caro-Kann: Two Knights Variation.} 7. Qe2 {[%emt 0:00:18] Threatens to win with exd5.} d4 {[%emt 0:00:22]} 8. Nb1 {[%emt 0:00:08]} h5 {[%emt 0:00:55] The position is equal.} 9. h4 {[%emt 0:00:24] [#]} Bb4 $146 {[%emt 0:00:48][%cal Bf8b4,Bb4a5,Ba5c7][%mdl 32]} ({Predecessor:} 9... g5 10. hxg5 Qxg5 11. d3 {0-1 (11) Stripunsky,A (2562)-Onischuk,A (2660) Saint Louis 2012}) 10. c3 {[%emt 0:00:22]} Ba5 {[%emt 0:00:01]} 11. Na3 {[%emt 0:03:28]} (11. cxd4 $11 Bb6 12. d5) 11... Ne5 $1 $15 {[%emt 0:00:40]} 12. f4 {[%emt 0:00:08]} Ng4 {[%emt 0:03:17]} 13. Nc4 {[%emt 0:01:40]} Bc7 {[%emt 0:01:07]} 14. a4 {[%emt 0:00:04]} N8h6 {[%emt 0:02:53]} 15. b4 {[%emt 0:00:35]} O-O {[%emt 0:01:13]} 16. Bb2 {[%emt 0:00:38]} b5 {[%emt 0:01:14]} 17. Na5 $1 {[%emt 0:00:32]} e5 {[%emt 0:01:57]} ({Black should try} 17... Bxa5 $15 18. bxa5 dxc3 19. Bxc3 Rb8) 18. f5 $2 {[%emt 0:00:57][%mdl 8192] [#] White does not recover from this.} (18. axb5 dxc3 19. Bxc3 (19. dxc3 cxb5 20. Rd1 Qe8 $17) 19... cxb5 $11) (18. Nxc6 $14 Qf6 19. axb5) 18... Bxa5 $19 {[%emt 0:00:46]} 19. bxa5 {[%emt 0:00:01]} bxa4 {[%emt 0:00:01] White must now prevent ...Rb8.} 20. Qc4 {[%emt 0:00:38]} Rb8 {[%emt 0:00:22]} ({And not} 20... Qxa5 21. Rxa4 Qc7 22. Be2 $17 (22. cxd4 $2 Rab8 $19)) 21. Ba3 {[%emt 0:00:06]} Re8 {[%emt 0:00:01]} 22. Bb4 {[%emt 0:00:20]} c5 {[%emt 0:00:46]} 23. Qxc5 {[%emt 0:00:15]} dxc3 {[%emt 0:00:07]} 24. Bxc3 {[%emt 0:00:08]} Qd7 {[%emt 0:00:07][%cal Oh6f5] Strongly threatening ...Nxf5!} 25. Be2 {[%emt 0:03:35] [#]} (25. Qd5 $17 Qxd5 26. exd5) 25... Nf6 $1 {[%emt 0:00:01]} 26. d3 {[%emt 0:00:14]} (26. Qe3) 26... Nhg4 {[%emt 0:00:11] Black is clearly winning.} 27. Bxg4 {[%emt 0:01:55] Be2 is the strong threat.} Nxg4 {[%emt 0:00:00]} 28. Qd5 {[%emt 0:00:06]} Qc7 {[%emt 0:00:01]} 29. Bd2 {[%emt 0:00:28]} Red8 {[%emt 0:00:05]} 30. Rc1 {[%emt 0:00:05]} Qe7 {[%emt 0:00:13]} 31. Qc4 {[%emt 0:00:07]} Rd4 {[%emt 0:00:02]} ({But not} 31... Rb2 $2 32. Bg5 Nf6 33. O-O $19) 32. Qc7 {[%emt 0:00:06]} Qxc7 {[%emt 0:00:06]} 33. Rxc7 {[%emt 0:00:01]} Rb1+ {[%emt 0:00:01]} 34. Rc1 {[%emt 0:00:15] Weighted Error Value: White=0.78/Black=0.49} 0-1

[Event "Rosh Hashanah Rapid 2022"]
[Site "Ramat Gan"]
[Date "2022.09.25"]
[Round "3.3"]
[White "Mindlin, Alon"]
[Black "Sokolovsky, Yahli"]
[Result "1-0"]
[ECO "D10"]
[WhiteElo "2426"]
[BlackElo "2419"]
[Annotator "TA"]
[PlyCount "103"]
[EventDate "2022.09.25"]
[EventType "rapid"]
[EventCountry "ISR"]
[SourceTitle "playchess.com"]
[Source "ChessBase"]
[SourceQuality "1"]
[TimeControl "900+5"]

{[%evp 9,103,7,13,14,17,17,26,22,43,52,48,45,63,60,85,52,54,55,55,51,76,77,85,66,58,59,64,57,66,60,83,52,53,62,55,57,83,56,71,38,50,54,88,87,85,52,106,65,98,79,109,35,152,156,152,149,154,150,161,156,189,26,46,26,431,432,405,395,1072,1050,29979,5720,29976,29977,29989,29990,29990,29989,29989,29974,29988,29983,29988,29985,29985,29986,29990,29975,29987,29976,29985,29986,29989,29988,29988,29987]} 1. d4 {[%emt 0:00:01]} d5 {[%emt 0:00:20]} 2. c4 {[%emt 0:00:02]} c6 {[%emt 0:00:01]} 3. cxd5 {[%emt 0:00:02]} cxd5 {[%emt 0:00:03]} 4. Bg5 {[%emt 0:00:02]} h6 {[%emt 0:00:06]} 5. Bh4 {[%emt 0:00:01]} Qb6 {[%emt 0:00:34]} 6. Nc3 {[%emt 0:00:02] D10: Slav Defence: 3 cxd5 (without early Nf3) and 3 Nc3.} e6 {[%emt 0:00:17]} 7. Qd2 {[%emt 0:00:11]} Nc6 {[%emt 0:00:25]} 8. e3 {[%emt 0:00:06] White has an edge.} Nge7 {[%emt 0:00:27]} 9. Bd3 {[%emt 0:00:18]} Bd7 {[%emt 0:02:05]} 10. Nf3 {[%emt 0:00:32]} Nb4 {[%emt 0:00:02]} 11. Bb1 $1 {[%emt 0:00:17] [#]} Qa6 $146 {[%emt 0:01:09]} ({Predecessor:} 11... Bb5 12. Nxb5 Qxb5 13. Qe2 Qxe2+ 14. Kxe2 Nc8 15. Rc1 Bd6 16. Ne5 Nb6 17. a3 Na6 {½-½ (42) Velikic,A (2207)-Brunello,M (2349) Novi Sad 2016}) 12. Ne5 {[%emt 0:00:48]} Nf5 {[%emt 0:01:05]} 13. Bxf5 {[%emt 0:04:31]} exf5 {[%emt 0:00:01]} 14. Qe2 {[%emt 0:00:41]} Qxe2+ {[%emt 0:05:42]} 15. Kxe2 {[%emt 0:00:02]} Bd6 {[%emt 0:00:01]} 16. Bg3 {[%emt 0:01:40][%cal Oe5f7,Bh4g3,Bg3e5,Be5d6,Bd6c5][%mdl 32]} Bxe5 {[%emt 0:01:29]} 17. Bxe5 {[%emt 0:00:02]} f6 $1 {[%emt 0:00:36]} 18. Bd6 {[%emt 0:00:24]} Na6 {[%emt 0:00:01]} 19. Nxd5 {[%emt 0:01:45]} Bc6 {[%emt 0:00:31]} 20. Nc3 {[%emt 0:00:09] White is much more active. The black rooks are badly placed.} Rd8 {[%emt 0:00:01]} 21. Bc5 {[%emt 0:00:53]} b6 {[%emt 0:00:24]} 22. Ba3 {[%emt 0:00:00]} f4 {[%emt 0:00:01]} 23. Rhd1 {[%emt 0:00:41]} Bxg2 {[%emt 0:00:28]} 24. e4 {[%emt 0:00:03]} Kf7 {[%emt 0:00:28]} 25. f3 {[%emt 0:00:10]} g5 {[%emt 0:00:01][%cal Og5g4]} 26. Kf2 {[%emt 0:00:01]} Bh3 {[%emt 0:00:01]} 27. Rac1 {[%emt 0:00:22]} h5 {[%emt 0:00:37]} (27... Bd7 $14) 28. Ne2 {[%emt 0:00:32]} Bd7 {[%emt 0:00:09]} 29. d5 $36 {[%emt 0:00:05][%cal Oh2h4][%mdl 2048] Keeping Black busy.} Rc8 {[%emt 0:00:11] [#]} 30. Nd4 {[%emt 0:00:03]} (30. h4 $1 $16) 30... g4 {[%emt 0:00:01]} (30... Nc5 $14) 31. Ne2 $16 {[%emt 0:00:07]} gxf3 {[%emt 0:00:13]} 32. Nxf4 {[%emt 0:00:02]} Rhe8 {[%emt 0:00:06]} 33. Rxc8 {[%emt 0:01:12]} (33. Nxh5 $6 Rxc1 34. Rxc1 Rxe4 $14) 33... Bxc8 {[%emt 0:00:00]} 34. Rd4 {[%emt 0:00:09]} (34. Nxh5 Rxe4 35. Kxf3 Rh4 $16) 34... Nc7 {[%emt 0:00:12]} 35. d6 $2 {[%emt 0:00:35]} (35. Kxf3 Bg4+ 36. Ke3 Rc8 $16) (35. Nxh5 $6 Rh8 $16) ({White should play} 35. Rc4 $18 Na6 36. b3 (36. Kxf3 b5 $18)) 35... Nb5 $11 {[%emt 0:00:05]} 36. Rd5 {[%emt 0:00:02] aiming for d7.} Nxa3 $2 {[%emt 0:00:12][%mdl 8192] A mistake that costs the game.} (36... Bd7 $11) 37. d7 $18 {[%emt 0:00:01][%mdl 64] Zwischenzug} ({Inferior is} 37. bxa3 Bb7 38. Rd1 (38. Rxh5 Bxe4 39. Rh4 Rd8 $11) (38. d7 Rd8 $11) 38... Bxe4 $11) 37... Bxd7 {[%emt 0:00:00]} 38. Rxd7+ {[%emt 0:00:00][%mdl 4096] Endgame KRN-KRN} Kg8 $2 {[%emt 0:00:00]} (38... Kf8 39. Ng6+ (39. Rxa7 Nc4 $16) 39... Kg8 40. bxa3 Rxe4 41. Rxa7 Re2+ 42. Kxf3 Rxh2) 39. Nxh5 {[%emt 0:00:09]} Rc8 {[%emt 0:00:06]} 40. bxa3 {[%emt 0:00:01] KRN-KR} (40. Nxf6+ $142 Kf8 41. bxa3 Rc6 42. e5 b5 43. Rxa7 b4 44. axb4 Rc2+ 45. Kxf3 Rc3+ 46. Ke4) 40... Rc2+ {[%emt 0:00:01]} 41. Kxf3 {[%emt 0:00:04] White mates.} Rxa2 {[%emt 0:00:01]} 42. Nxf6+ Kf8 43. Rxa7 {[%emt 0:00:04]} b5 {[%emt 0:00:01]} 44. Nd5 {[%emt 0:00:10]} Rxh2 {[%emt 0:00:03]} 45. Rb7 {[%emt 0:00:09]} Rb2 {[%emt 0:00:08]} 46. Kf4 {[%emt 0:00:02]} Ke8 {[%emt 0:00:01]} 47. Ke5 {[%emt 0:00:01]} Kd8 {[%emt 0:00:00]} 48. Nb4 {[%emt 0:00:03]} Rb3 {[%emt 0:00:07]} 49. Rxb5 {[%emt 0:00:01]} Rxa3 {[%emt 0:00:02]} 50. Kd6 {[%emt 0:00:06][%cal Rb5b8]} Kc8 {[%emt 0:00:04]} 51. Rc5+ {[%emt 0:00:04]} Kd8 {[%emt 0:00:06] [#]} 52. Ra5 $3 {[%emt 0:00:07][%mdl 512] Weighted Error Value: White=0.18 (very precise) /Black=0.43} 1-0

[Event "Rosh Hashanah Rapid 2022"]
[Site "Ramat Gan"]
[Date "2022.09.25"]
[Round "3.4"]
[White "Zanan, Evgeny"]
[Black "Zemach, Nadav"]
[Result "1-0"]
[ECO "C88"]
[WhiteElo "2485"]
[BlackElo "2238"]
[Annotator "TA"]
[PlyCount "111"]
[EventDate "2022.09.25"]
[EventType "rapid"]
[EventCountry "ISR"]
[SourceTitle "playchess.com"]
[Source "ChessBase"]
[SourceQuality "1"]
[TimeControl "900+5"]

{[%evp 14,110,32,19,63,34,27,31,31,27,27,27,31,34,31,31,34,28,39,27,36,20,15,-107,50,51,54,41,39,38,39,37,39,32,34,25,34,35,109,107,105,100,117,108,124,118,119,45,50,47,55,34,55,55,50,55,55,40,40,55,59,0,40,0,55,40,40,40,40,22,40,40,40,40,40,40,40,40,55,55,40,40,55,51,133,133,133,133,131,131,122,114,182,181,265,191,182,186,29999]} 1. e4 {[%emt 0:00:40] Wedberg,T} e5 {[%emt 0:00:01]} 2. Nf3 {[%emt 0:00:01]} Nc6 {[%emt 0:00:01]} 3. Bb5 {[%emt 0:00:01]} a6 {[%emt 0:00:01]} 4. Ba4 {[%emt 0:00:01]} Nf6 {[%emt 0:00:01]} 5. O-O {[%emt 0:00:01]} Be7 {[%emt 0:00:02]} 6. Re1 {[%emt 0:00:01]} b5 {[%emt 0:00:01]} 7. Bb3 {[%emt 0:00:00]} O-O {[%emt 0:00:02]} 8. a4 {[%emt 0:00:01][%cal Ba2a4,Ba4b5][%mdl 32] Threatens to win with axb5. Nowadays more popular than 8.c3.} d5 {[%emt 0:00:08] C88: Closed Ruy Lopez: Anti-Marshall Systems.} 9. Bxd5 {[%emt 0:00:03]} (9. axb5 {seems wilder.} dxe4 10. bxc6 exf3 11. Qxf3 e4 12. Qe2) 9... Nxd5 {[%emt 0:03:37]} 10. axb5 {[%emt 0:00:01]} Nd4 {[%emt 0:00:32] White is slightly better.} 11. Nxd4 {[%emt 0:00:15]} exd4 {[%emt 0:00:03]} 12. exd5 {[%emt 0:00:01]} Bb7 {[%emt 0:00:08][%cal Od8d5]} 13. c4 {[%emt 0:05:06] [#] And now bxa6 would win.} axb5 $146 {[%emt 0:00:20]} ({Predecessor:} 13... dxc3 14. dxc3 axb5 15. Rxa8 Bxa8 16. Qd3 Bxd5 17. Qxb5 Bd6 18. Nd2 Qa8 19. f3 Qa7+ {1-0 (40) De Firmian,N (2575)-Sokolov,I (2670) Amsterdam 1996 CBM 055 [Wedberg,T]}) 14. Rxa8 {[%emt 0:00:02]} Bxa8 {[%emt 0:00:01]} 15. d3 {[%emt 0:00:01]} c6 {[%emt 0:01:07]} 16. dxc6 {[%emt 0:00:32]} Bxc6 {[%emt 0:00:12]} 17. Nd2 {[%emt 0:00:21]} Bb4 {[%emt 0:00:33]} 18. Re5 {[%emt 0:01:10] [#]} (18. Rf1 $11) 18... Re8 $2 {[%emt 0:01:05]} (18... Qf6 $1 $17 {[%cal Rf6e5]} 19. Qe2 Bd6 20. Rxb5 Bxb5 21. cxb5 Qg5) 19. Rxe8+ $14 {[%emt 0:02:35]} Qxe8 {[%emt 0:00:01]} 20. cxb5 {[%emt 0:00:05]} Bxb5 {[%emt 0:00:09] A strong pair of Bishops.} 21. Nf3 {[%emt 0:00:00]} Qd7 {[%emt 0:02:00]} 22. h3 {[%emt 0:00:30]} Qd5 {[%emt 0:00:30] Against Qb3} 23. Bf4 {[%emt 0:00:33]} f6 {[%emt 0:00:13]} 24. Qc2 {[%emt 0:00:16]} Bc5 {[%emt 0:02:14]} 25. Nd2 {[%emt 0:00:24]} f5 {[%emt 0:00:14]} (25... h5 $14) 26. Nc4 {[%emt 0:01:16]} h6 {[%emt 0:00:41]} 27. Qe2 {[%emt 0:01:24]} Kh7 {[%emt 0:00:07] [#]} 28. b3 $1 {[%emt 0:00:04]} Bc6 {[%emt 0:00:17][%csl Gc6][%cal Rd5g2]} 29. f3 {[%emt 0:00:01]} Bb5 {[%emt 0:00:11]} 30. Qe5 {[%emt 0:00:24]} (30. Qe1 $16) 30... Qxe5 {[%emt 0:00:21]} 31. Bxe5 {[%emt 0:00:01][%mdl 4096] Endgame KBB-KBN} g5 {[%emt 0:00:25]} 32. f4 {[%emt 0:00:03]} gxf4 {[%emt 0:00:09]} 33. Bxf4 {[%emt 0:00:01]} h5 {[%emt 0:00:02]} 34. Kf2 {[%emt 0:00:02]} Kg6 {[%emt 0:00:02]} 35. Kg3 {[%emt 0:00:43]} Kf6 {[%emt 0:01:09]} 36. Kh4 {[%emt 0:00:28]} Bc6 {[%emt 0:00:00]} 37. Kg3 {[%emt 0:00:25]} ({Don't play} 37. Kxh5 Bxg2 38. Ne5 Bb4 $11) 37... Bb5 {[%emt 0:00:01]} 38. Kf2 {[%emt 0:00:12]} Kg6 {[%emt 0:00:12]} 39. Ke2 {[%emt 0:00:04]} Kf6 {[%emt 0:00:05]} 40. g3 {[%emt 0:00:11]} Ke6 {[%emt 0:00:12]} 41. Kd2 {[%emt 0:00:07]} Kd5 {[%emt 0:00:08]} 42. Kc2 {[%emt 0:00:06]} Be7 {[%emt 0:00:31]} 43. h4 {[%emt 0:00:01]} Bc5 {[%emt 0:00:02]} 44. Nd2 {[%emt 0:00:01]} Bb4 {[%emt 0:00:08]} 45. Nf3 {[%emt 0:00:09]} Bc5 {[%emt 0:00:08]} 46. Ng1 {[%emt 0:00:03]} Be8 {[%emt 0:00:26]} 47. Ne2 {[%emt 0:00:01]} Bf7 {[%emt 0:00:14]} 48. Bb8 {[%emt 0:00:03]} Kc6 {[%emt 0:00:01]} (48... Bb4 $14) 49. Be5 $16 {[%emt 0:00:18]} Kd5 {[%emt 0:00:01]} 50. Bf6 {[%emt 0:00:06]} Bb6 {[%emt 0:00:18]} 51. b4 {[%emt 0:00:10][%cal Bb3b4,Bb4b5][%mdl 32] Inhibits Bc5.} Ba7 {[%emt 0:00:05]} 52. Kb3 {[%emt 0:00:08] aiming for b5. White is more active.} Bb6 {[%emt 0:00:00]} (52... Be8 $16 {was called for.}) 53. Ka4 $18 {[%emt 0:00:08]} Be8+ {[%emt 0:00:01]} (53... Kc6 {might work better.} 54. b5+ (54. Bxd4 Bc7 $16) (54. Nxd4+ Bxd4 55. Bxd4 Ba2 $16) 54... Kb7) 54. b5 {[%emt 0:00:03]} Bf7 {[%emt 0:00:03]} 55. Nf4+ {[%emt 0:00:03]} Kc5 $2 {[%emt 0:00:04]} (55... Kd6 $18 56. Kb4 Kd7) 56. Be7# {[%emt 0:00:18] Weighted Error Value: White=0.12 (very precise) /Black=0.29 (precise)} 1-0

[Event "Rosh Hashanah Rapid 2022"]
[Site "Ramat Gan"]
[Date "2022.09.25"]
[Round "3.5"]
[White "Parkhov, Yair"]
[Black "Noy, Eyal"]
[Result "1-0"]
[ECO "E43"]
[WhiteElo "2479"]
[BlackElo "2067"]
[Annotator "TA"]
[PlyCount "64"]
[EventDate "2022.09.25"]
[EventType "rapid"]
[EventCountry "ISR"]
[SourceTitle "playchess.com"]
[Source "ChessBase"]
[SourceQuality "1"]
[TimeControl "900+5"]

{[%evp 14,64,0,3,4,10,14,20,17,0,1,6,4,15,35,15,36,-19,0,0,0,-41,64,43,73,35,27,0,37,30,46,0,49,5,12,12,7,0,8,0,0,0,743,740,959,949,832,783,1578,1467,29970,12520,5261]} 1. d4 {[%emt 0:00:08]} Nf6 {[%emt 0:00:01]} 2. c4 {[%emt 0:00:01]} e6 {[%emt 0:00:04]} 3. Nc3 {[%emt 0:00:14]} Bb4 {[%emt 0:00:02]} 4. e3 {[%emt 0:00:02]} O-O {[%emt 0:00:24]} 5. Bd3 {[%emt 0:00:11]} c5 {[%emt 0:00:18]} 6. Nf3 {[%emt 0:00:10]} b6 {[%emt 0:00:23]} 7. O-O {[%emt 0:00:24]} Bb7 {[%emt 0:00:04]} 8. Qe2 {[%emt 0:02:03]} cxd4 {[%emt 0:00:46] E43: Nimzo-Indian: Rubinstein: 4...b6.} 9. exd4 {[%emt 0:00:02]} d5 {[%emt 0:00:03]} 10. cxd5 {[%emt 0:00:07]} Nxd5 {[%emt 0:00:39] [#] The position is equal.} 11. Bg5 $146 {[%emt 0:02:19]} ({Predecessor:} 11. Qe4 g6 12. Bg5 Qd7 13. Qh4 f6 14. Bh6 Rf7 15. Bd2 Bd6 16. Rfe1 Nxc3 17. bxc3 {1-0 (35) Hawranke,D (2139)-Von Malottki,R (1972) Hamburg 2011}) 11... Be7 {[%emt 0:00:34] [#]} 12. Qe4 $1 {[%emt 0:00:18][%csl Gd3][%cal Re4h7]} g6 {[%emt 0:00:01]} 13. Qh4 {[%emt 0:03:16] Nxd5 is the strong threat.} Bxg5 {[%emt 0:04:22]} 14. Nxg5 {[%emt 0:00:03][%csl Gg5][%cal Rh4h7,Bf3g5,Bg5h3,Bh3f4][%mdl 32]} ({Don't play} 14. Qxg5 Nxc3 15. bxc3 Bxf3 16. Qxd8 Rxd8 $15) 14... h5 {[%emt 0:00:01]} 15. Nxd5 {[%emt 0:02:12]} (15. Qg3 $14 Qe7 16. Rac1) 15... Bxd5 $11 {[%emt 0:00:20]} ({Much less strong is} 15... Qxd5 16. Be4 Qd7 17. Bxb7 Qxb7 18. g4 $16) 16. g4 {[%emt 0:01:40]} f6 {[%emt 0:00:45]} 17. Nh3 {[%emt 0:00:02]} (17. Nh7 $5 f5 18. Qxd8 Rxd8 19. Nf6+ Kf7 20. Nxd5 Rxd5 21. gxh5 $15) 17... Kg7 {[%emt 0:00:55]} ({Black should play} 17... f5 $15 18. Qxd8 Rxd8) 18. Nf4 {[%emt 0:00:31]} (18. Qg3 $5 {[%cal Rg4h5]}) 18... f5 {[%emt 0:00:31]} 19. Qxd8 {[%emt 0:00:26] Dancing on a razor blade. White is much more active. The black rooks are badly placed.} Rxd8 {[%emt 0:00:01]} 20. gxh5 {[%emt 0:00:09] [#] aiming for Rac1.} g5 {[%emt 0:00:37]} (20... Nc6 $5 {[%cal Rc6d4]}) 21. Nxd5 {[%emt 0:00:06]} Rxd5 {[%emt 0:00:01]} 22. Bc4 {[%emt 0:00:09]} (22. Be2 $14 {is more appropriate.} g4 23. Rac1) 22... Rxd4 {[%emt 0:00:22]} (22... Rd6 $11) 23. Bxe6 {[%emt 0:00:01] Hoping for Rac1.} (23. Rac1 $5 {[%cal Rc4e6]}) 23... Kf6 $1 {[%emt 0:00:03]} 24. Bb3 {[%emt 0:00:22] Strongly threatening Rac1.} Nc6 {[%emt 0:01:36]} 25. Rfd1 $36 {[%emt 0:00:01][%mdl 2048] White has good play.} Rad8 {[%emt 0:00:49]} 26. Rac1 {[%emt 0:00:40]} Rg4+ {[%emt 0:00:47]} 27. Kf1 {[%emt 0:00:06]} Rxd1+ $4 {[%emt 0:00:04][%mdl 8192]} (27... Nd4 $11) 28. Bxd1 $18 {[%emt 0:00:05]} Ne5 {[%emt 0:00:54]} 29. Bxg4 {[%emt 0:00:04]} Nxg4 {[%emt 0:00:08]} 30. Rc6+ {[%emt 0:00:04]} Ke5 {[%emt 0:00:04]} 31. h6 {[%emt 0:00:04] Intending h7 and mate.} Nf6 {[%emt 0:00:03]} 32. Rc7 {[%emt 0:00:06]} Kd5 {[%emt 0:02:03] Weighted Error Value: White=0.18 (very precise) /Black=0.45} 1-0